fUST/lending_fUST_20260104
["ID","MTS","AMOUNT","RATE_DAILY","PERIOD"]
[400380454,1767468647864,-1244.96135317,0.00015152,2]
[400380455,1767468647874,-168.0,0.00015326,2]
[400380456,1767468647883,-852.96119543,0.00015342,2]
[400380460,1767468811981,155.43604656,0.00024719,120]
[400380461,1767468902535,1819.80740785,0.00011945,2]
[400380462,1767468902558,6647.44401265,0.00011945,2]
[400380463,1767469101247,3352.56598735,0.00011864,2]
[400380464,1767469101270,10000.01,0.00011864,2]
[400380465,1767469101294,10000.01,0.00011864,2]
[400380466,1767469101316,10000.01,0.00011864,2]
[400380467,1767469101339,1349.22928905,0.00011864,2]
[400380468,1767469174169,210.25,7.754e-05,2]
[400380469,1767469174588,315.37,8.106e-05,2]
[400380470,1767469174999,420.49,8.458e-05,2]
[400380471,1767469175444,525.62,8.811e-05,2]
[400380472,1767469175810,630.74,9.163e-05,2]
[400380473,1767469176248,735.86,9.516e-05,2]
[400380474,1767469177304,840.98,9.868e-05,2]
[400380475,1767469177691,946.11,0.00010221,2]
[400380476,1767469178078,1051.23,0.00010573,2]
[400380477,1767469183291,1527.0986922,0.00011855,2]
[400380478,1767469242506,169.3323972,5.875e-05,2]
[400380479,1767469246089,999.0,0.00011751,2]
[400380480,1767469250295,164.37,8.846e-05,2]
[400380481,1767469250917,114.32962155,9.2e-05,2]
[400380482,1767469250940,82.92037845,9.2e-05,2]
[400380483,1767469251109,230.12,9.554e-05,2]
[400380484,1767469251544,263.0,9.907e-05,2]
[400380485,1767469251935,295.87,0.00010261,2]
[400380486,1767469252343,328.75,0.00010615,2]
[400380487,1767469272783,507.443316,0.0001173,2]
[400380488,1767469522064,3658.56667035,0.0001207,2]
[400380490,1767469530966,4633.3396352,0.0001207,2]
[400380491,1767469530991,366.6603648,0.0001207,2]
[400380514,1767469759033,4758.57556985,0.0001207,2]
[400380559,1767469838377,-593.0,0.00012256,2]
[400380560,1767469838388,-492.82792361,0.00012257,2]
[400380562,1767469838547,-300.0,0.00012657,2]
[400380563,1767469838559,-300.0,0.00012657,2]
[400380564,1767469838569,-300.0,0.00012657,2]
[400380565,1767469838579,-45.85923156,0.00012657,2]
[400380566,1767469838601,-254.14076844,0.00012657,2]
[400380567,1767469838611,-1200.0,0.00012657,2]
[400380568,1767469838620,-13537.1256081,0.00012658,2]
[400380569,1767469838632,-772.04249589,0.00012658,2]
[400380570,1767469838644,-1023.73570649,0.00012658,2]
[400380571,1767469838656,-526.80861021,0.00012658,2]
[400380572,1767469838667,-2571.65123819,0.00012658,2]
[400380573,1767469838679,-355.81467659,0.00012658,2]
[400380574,1767469838694,-3795.08613463,0.00012658,2]
[400380575,1767469838710,-17529.93437864,0.00012658,2]
[400380576,1767469838723,-188.91215222,0.000127,2]
[400380603,1767469846715,-32.08784778,0.000127,2]
[400380604,1767469846724,-764.47428922,0.00012756,2]
[400380612,1767470766984,207.15357246,0.00011987,2]
[400380659,1767471032386,-2063.87874911,0.00012361,2]
[400380661,1767471032396,-595.0,0.00012361,2]
[400380663,1767471032406,-503.37136514,0.00012462,2]
[400380665,1767471032415,-385.32833548,0.00012562,2]
[400380666,1767471032425,-1200.0,0.00012658,2]
[400380668,1767471032435,-436.0,0.00012659,2]
[400380670,1767471032445,-300.0,0.00012659,2]
[400380672,1767471032454,-777.835211,0.00012662,2]
[400380674,1767471032464,-777.835211,0.00012662,2]
[400380675,1767471032473,-308.43305629,0.00012662,2]
[400380678,1767471032485,-469.40215471,0.00012662,2]
[400380679,1767471032495,-777.835211,0.00012662,2]
[400380681,1767471032504,-250.0,0.00012781,2]
[400380683,1767471032515,-172.9500058,0.00012834,2]
[400380685,1767471032524,-507.70479022,0.000129,2]
[400380688,1767471032536,-6918.16142006,0.000129,2]
[400380691,1767471032546,-300.0,0.00012912,2]
[400380693,1767471032555,-300.0,0.00012912,2]
[400380696,1767471032564,-300.0,0.00012912,2]
[400380697,1767471032574,-300.0,0.00012912,2]
[400380699,1767471032584,-300.0,0.00012912,2]
[400380700,1767471032593,-300.0,0.00012912,2]
[400380702,1767471032603,-300.0,0.00012912,2]
[400380704,1767471032612,-300.0,0.00012912,2]
[400380706,1767471032622,-300.0,0.00012912,2]
[400380707,1767471032631,-300.0,0.00012912,2]
[400380709,1767471032641,-300.0,0.00012912,2]
[400380711,1767471032651,-300.0,0.00012912,2]
[400380713,1767471032662,-300.0,0.00012912,2]
[400380715,1767471032671,-300.0,0.00012912,2]
[400380717,1767471032681,-300.0,0.00012912,2]
[400380719,1767471032690,-600.0,0.00012912,2]
[400380721,1767471032699,-193.549466,0.000135,2]
[400380722,1767471032708,-600.2103909,0.000135,2]
[400380724,1767471032718,-409.8183872,0.000135,2]
[400380726,1767471032727,-777.835211,0.00013501,2]
[400380728,1767471032737,-777.835211,0.00013501,2]
[400380730,1767471032747,-777.835211,0.00013501,2]
[400380732,1767471032756,-777.835211,0.00013501,2]
[400380733,1767471032766,-230.325,0.00013501,2]
[400380735,1767471032775,-2145.0,0.00013501,2]
[400380737,1767471032785,-628.0,0.00013501,2]
[400380739,1767471032794,-375.118478,0.00013501,2]
[400380741,1767471032806,-989.881522,0.00013501,2]
[400380743,1767471032816,-136.09439178,0.00013506,2]
[400380817,1767471044897,-500.0,0.00012661,2]
[400380818,1767471044908,-500.0,0.00012661,2]
[400380820,1767471044919,-436.76945229,0.00012661,2]
[400380821,1767471044931,-63.23054771,0.00012661,2]
[400380822,1767471044941,-500.0,0.00012661,2]
[400380823,1767471044951,-250.54000002,0.00012661,2]
[400380824,1767471044961,-500.0,0.00012661,2]
[400380825,1767471044971,-383.20027748,0.00012661,2]
[400380829,1767471046692,-116.79972252,0.00012661,2]
[400380830,1767471046702,-500.0,0.00012661,2]
[400380831,1767471046713,-500.0,0.00012661,2]
[400380832,1767471046723,-500.0,0.00012661,2]
[400380833,1767471046733,-500.0,0.00012661,2]
[400380834,1767471046744,-500.0,0.00012661,2]
[400380835,1767471046754,-500.0,0.00012661,2]
[400380836,1767471046765,-500.0,0.00012661,2]
[400380837,1767471046775,-500.0,0.00012661,2]
[400380838,1767471046785,-500.0,0.00012661,2]
[400380839,1767471046796,-500.0,0.00012661,2]
[400380840,1767471046807,-536.50833635,0.00012661,2]
[400380841,1767471046824,-500.0,0.00012661,2]
[400380842,1767471046835,-500.0,0.00012661,2]
[400380843,1767471046845,-500.0,0.00012661,2]
[400380844,1767471046855,-500.0,0.00012661,2]
[400380845,1767471046865,-500.0,0.00012661,2]
[400380846,1767471046875,-450.71843784,0.00012661,2]
[400380847,1767471046885,-500.0,0.00012661,2]
[400380848,1767471046895,-233.17409067,0.00012661,2]
[400380849,1767471046906,-500.0,0.00012661,2]
[400380850,1767471046921,-500.0,0.00012661,2]
[400380851,1767471046931,-500.0,0.00012661,2]
[400380852,1767471046941,-343.15983765,0.00012661,2]
[400380855,1767471191588,495.6543747,0.00011822,2]
[400380864,1767471379543,162.54,0.00010576,2]
[400380866,1767471565055,500.0,0.00030136,120]
[400380867,1767471584148,204.5258424,0.00011648,2]
[400380868,1767471615419,3804.90027579,0.00011689,2]
[400380869,1767471615445,7141.02703561,0.00011689,2]
[400380870,1767471785870,337.2181302,0.00011559,2]
[400380871,1767471842409,187.60385006,0.00011983,2]
[400380872,1767471894534,1365.2142283,0.00011559,2]
[400380873,1767471908840,999.0,0.00011619,2]
[400380945,1767472231584,-300.0,0.0001246,2]
[400380947,1767472231594,-1200.0,0.0001246,2]
[400380949,1767472231603,-12022.12427282,0.00012461,2]
[400380951,1767472231613,-596.0,0.00012461,2]
[400380953,1767472231623,-522.13076108,0.00012485,2]
[400380955,1767472231633,-47230.95686343,0.00012557,2]
[400380957,1767472231642,-500.0,0.00012557,2]
[400380959,1767472231651,-233.13783816,0.00012557,2]
[400380961,1767472231660,-500.0,0.00012557,2]
[400380963,1767472231670,-500.0,0.00012557,2]
[400380965,1767472231680,-255.62505272,0.00012557,2]
[400380966,1767472231689,-500.0,0.00012557,2]
[400380969,1767472231699,-500.0,0.00012557,2]
[400380971,1767472231708,-500.0,0.00012557,2]
[400380972,1767472231718,-566.11845385,0.00012557,2]
[400380975,1767472231727,-500.0,0.00012557,2]
[400380978,1767472231738,-500.0,0.00012557,2]
[400380980,1767472231747,-500.0,0.00012557,2]
[400380982,1767472231757,-500.0,0.00012557,2]
[400380984,1767472231766,-500.0,0.00012557,2]
[400380986,1767472231775,-500.0,0.00012557,2]
[400380988,1767472231785,-500.0,0.00012557,2]
[400380990,1767472231795,-500.0,0.00012557,2]
[400380992,1767472231804,-248.13045452,0.00012557,2]
[400380994,1767472231813,-392.94537071,0.00012557,2]
[400380996,1767472231823,-595.80887766,0.00012557,2]
[400380998,1767472231832,-521.13282768,0.00012557,2]
[400381000,1767472231841,-500.0,0.00012557,2]
[400381002,1767472231851,-500.0,0.00012557,2]
[400381004,1767472231861,-350.0,0.00012557,2]
[400381006,1767472231870,-500.0,0.00012557,2]
[400381008,1767472231879,-500.0,0.00012557,2]
[400381010,1767472231889,-500.0,0.00012557,2]
[400381012,1767472231898,-511.92252003,0.00012681,2]
[400381014,1767472231907,-2045.64239002,0.00012681,2]
[400381016,1767472231918,-500.0,0.00012913,2]
[400381018,1767472231927,-300.0,0.00012913,2]
[400381020,1767472231937,-300.0,0.00012913,2]
[400381022,1767472231947,-300.0,0.00012913,2]
[400381024,1767472231956,-300.0,0.00012913,2]
[400381026,1767472231965,-300.0,0.00012913,2]
[400381028,1767472231974,-300.0,0.00012913,2]
[400381030,1767472231984,-300.0,0.00012913,2]
[400381032,1767472232002,-300.0,0.00012913,2]
[400381034,1767472232014,-300.0,0.00012913,2]
[400381036,1767472232024,-300.0,0.00012913,2]
[400381038,1767472232033,-300.0,0.00012913,2]
[400381040,1767472232043,-300.0,0.00012913,2]
[400381042,1767472232052,-300.0,0.00012913,2]
[400381043,1767472232062,-300.0,0.00012913,2]
[400381045,1767472232071,-300.0,0.00012913,2]
[400381047,1767472232080,-165.9092991,0.00012976,2]
[400381049,1767472232090,-184.2691776,0.000132,2]
[400381051,1767472232099,-184.2691776,0.000132,2]
[400381053,1767472232109,-184.2691776,0.000132,2]
[400381055,1767472232119,-184.2691776,0.000132,2]
[400381057,1767472232128,-184.2691776,0.000132,2]
[400381058,1767472232138,-1192.63391846,0.00013214,2]
[400381059,1767472232147,-2063.87874912,0.00013243,2]
[400381060,1767472232157,-184.2691776,0.000133,2]
[400381061,1767472232166,-184.2691776,0.000133,2]
[400381062,1767472232175,-459.29642622,0.00013349,2]
[400381063,1767472232186,-628.0,0.00013378,2]
[400381064,1767472232195,-306.541,0.00013604,2]
[400381065,1767472232204,-420.0,0.00013672,2]
[400381066,1767472232214,-600.0,0.00013698,2]
[400381067,1767472232223,-500.0,0.00013698,2]
[400381068,1767472232232,-500.0,0.00013698,2]
[400381069,1767472232242,-500.0,0.00013698,2]
[400381070,1767472232251,-500.0,0.00013698,2]
[400381071,1767472232260,-151.49639709,0.00013698,2]
[400381072,1767472232269,-500.0,0.00013698,2]
[400381073,1767472232280,-500.0,0.00013698,2]
[400381074,1767472232289,-500.0,0.00013698,2]
[400381075,1767472232299,-500.0,0.00013698,2]
[400381076,1767472232307,-399.44,0.00013698,2]
[400381077,1767472232316,-1000.0,0.00013699,2]
[400381078,1767472232325,-166.756486,0.00013699,2]
[400381079,1767472232339,-1439.090148,0.00013699,2]
[400381080,1767472232348,-500.0,0.00013699,2]
[400381081,1767472232358,-202.5750319,0.000137,2]
[400381082,1767472232367,-600.2103909,0.000137,2]
[400381083,1767472232377,-1680.0,0.00013706,2]
[400381084,1767472232386,-600.0,0.0001397,2]
[400381085,1767472232396,-246.84985962,0.00014016,2]
[400381086,1767472232405,-578.19439321,0.00014048,2]
[400381087,1767472232525,-2310.46479525,0.00014048,2]
[400381088,1767472232535,-326.95001395,0.00014048,2]
[400381089,1767472232545,-1306.49225574,0.00014048,2]
[400381090,1767472232554,-608.5535752,0.0001405,2]
[400381091,1767472232564,-2431.78008651,0.0001405,2]
[400381092,1767472232573,-309.06111321,0.0001405,2]
[400381093,1767472232583,-1235.00820839,0.00014219,2]
[400381094,1767472232594,-1000.0,0.00014247,2]
[400381095,1767472232604,-185.8405688,0.00014274,2]
[400381096,1767472232614,-184.2691776,0.00014274,2]
[400381097,1767472232623,-184.2691776,0.00014274,2]
[400381098,1767472232633,-184.2691776,0.00014274,2]
[400381099,1767472232643,-1041.66666667,0.00014332,2]
[400381100,1767472232652,-1735.66819557,0.00014378,2]
[400381101,1767472232662,-616.11429808,0.00014485,2]
[400381102,1767472232671,-1500.0,0.00014795,2]
[400381103,1767472232680,-281.04379002,0.000148,2]
[400381104,1767472232690,-302.57434876,0.000149,2]
[400381105,1767472232700,-302.57434876,0.000149,2]
[400381106,1767472232708,-302.57434876,0.000149,2]
[400381107,1767472232718,-1500.0,0.00015,2]
[400381108,1767472232727,-1000.0,0.00015,2]
[400381109,1767472232736,-587.0,0.00015002,2]
[400381110,1767472232748,-753.2911651,0.00015035,2]
[400381116,1767472237773,-1165.65595123,0.00013378,2]
[400381145,1767472632087,3577.29532978,0.00012,2]
[400381225,1767473437812,-300.0,0.00012357,2]
[400381226,1767473437822,-21.47698486,0.00012357,2]
[400381227,1767473437865,-1178.52301514,0.00012357,2]
[400381228,1767473437875,-595.0,0.00012357,2]
[400381229,1767473437885,-8128.62982901,0.00012358,2]
[400381230,1767473437896,-4344.26589817,0.00012358,2]
[400381231,1767473437907,-519.7658599,0.00012456,2]
[400381232,1767473437917,-224.835032,0.00012606,2]
[400381233,1767473437927,-300.0,0.00012706,2]
[400381234,1767473437936,-300.0,0.00012706,2]
[400381235,1767473437947,-300.0,0.00012706,2]
[400381236,1767473437956,-300.0,0.00012706,2]
[400381237,1767473437966,-300.0,0.00012706,2]
[400381238,1767473437976,-300.0,0.00012706,2]
[400381239,1767473437986,-300.0,0.00012706,2]
[400381240,1767473437996,-300.0,0.00012706,2]
[400381241,1767473438005,-300.0,0.00012706,2]
[400381242,1767473438015,-300.0,0.00012706,2]
[400381243,1767473438025,-300.0,0.00012706,2]
[400381244,1767473438035,-300.0,0.00012706,2]
[400381245,1767473438045,-300.0,0.00012706,2]
[400381246,1767473438055,-300.0,0.00012706,2]
[400381247,1767473438064,-300.0,0.00012706,2]
[400381248,1767473438075,-600.0,0.00012706,2]
[400381249,1767473438084,-466.701126,0.000129,2]
[400381250,1767473438095,-466.701126,0.000129,2]
[400381251,1767473438104,-466.701126,0.000129,2]
[400381252,1767473438114,-466.701126,0.000129,2]
[400381253,1767473438124,-224.83503199,0.00013539,2]
[400381254,1767473438133,-420.0,0.0001356,2]
[400381255,1767473438144,-628.0,0.00013565,2]
[400381256,1767473438161,-1365.0,0.00013565,2]
[400381257,1767473438171,-2145.0,0.00013565,2]
[400381258,1767473438183,-1680.0,0.00013592,2]
[400381259,1767473438200,-600.0,0.00013698,2]
[400381260,1767473438210,-166.7564871,0.00013699,2]
[400381261,1767473438221,-500.0,0.00013699,2]
[400381262,1767473438231,-245.233,0.00013699,2]
[400381263,1767473438241,-6978.98908756,0.00013877,2]
[400381264,1767473438250,-720.0,0.00013977,2]
[400381266,1767473438260,-1000.0,0.00014247,2]
[400381267,1767473438270,-1041.66666667,0.00014332,2]
[400381268,1767473438280,-466.701126,0.00014378,2]
[400381269,1767473438290,-466.701126,0.00014378,2]
[400381270,1767473438300,-466.701126,0.00014378,2]
[400381271,1767473438309,-466.701126,0.00014378,2]
[400381272,1767473438318,-1736.75899132,0.00014378,2]
[400381273,1767473438329,-613.32371468,0.00014456,2]
[400381274,1767473438339,-224.83503199,0.00014472,2]
[400381275,1767473438348,-1500.0,0.00014795,2]
[400381276,1767473438358,-193.549466,0.00014795,2]
[400381277,1767473438367,-466.701126,0.00014795,2]
[400381278,1767473438376,-466.701126,0.00014795,2]
[400381279,1767473438387,-466.701126,0.00014795,2]
[400381280,1767473438396,-466.701126,0.00014795,2]
[400381281,1767473438406,-587.0,0.00014881,2]
[400381282,1767473438415,-2351.0,0.00014952,2]
[400381283,1767473438425,-695.50111933,0.00015035,2]
[400381284,1767473438434,-600.0,0.00015068,2]
[400381285,1767473438444,-525.167928,0.00015068,2]
[400381286,1767473438455,-800.0,0.00015068,2]
[400381287,1767473438465,-151.0,0.000152,2]
[400381288,1767473438474,-168.0,0.00015278,2]
[400381289,1767473438484,-168.0,0.0001534,2]
[400381290,1767473438494,-249.44509816,0.0001534,2]
[400381291,1767473438503,-288.59111482,0.0001534,2]
[400381292,1767473438513,-500.0,0.0001534,2]
[400381294,1767473438523,-500.0,0.0001534,2]
[400381295,1767473438533,-500.0,0.0001534,2]
[400381296,1767473438542,-500.0,0.0001534,2]
[400381297,1767473438552,-500.0,0.0001534,2]
[400381298,1767473438562,-500.0,0.0001534,2]
[400381299,1767473438571,-500.0,0.0001534,2]
[400381300,1767473438581,-500.0,0.0001534,2]
[400381301,1767473438590,-500.0,0.0001534,2]
[400381302,1767473438600,-1183.68490617,0.00015342,2]
[400381321,1767473446022,-505.725,0.00013565,2]
[400381322,1767473446032,-131.24192241,0.00015342,2]
[400381403,1767474632389,-300.0,0.00013594,2]
[400381404,1767474632398,-300.0,0.00013594,2]
[400381406,1767474632408,-613.0,0.00013594,2]
[400381408,1767474632417,-1200.0,0.00013594,2]
[400381410,1767474632426,-497.10406841,0.00013594,2]
[400381412,1767474632436,-1365.0,0.00013595,2]
[400381413,1767474632445,-2145.0,0.00013595,2]
[400381415,1767474632454,-628.0,0.00013595,2]
[400381416,1767474632464,-178.0,0.00013595,2]
[400381417,1767474632473,-2700.44467948,0.00013599,2]
[400381430,1767474638012,-6294.85532051,0.00013599,2]
[400381431,1767474638023,-500.0,0.00013698,2]
[400381432,1767474638033,-1000.0,0.00013699,2]
[400381433,1767474638043,-500.0,0.00013699,2]
[400381434,1767474638056,-845.82507931,0.00013766,2]
[400381435,1767474638068,-3869.52190026,0.00013766,2]
[400381455,1767474646187,-416.0,0.00013595,2]
[400381456,1767474646197,-1084.13760807,0.00013766,2]
[400381556,1767475832620,-300.0,0.00012658,2]
[400381557,1767475832631,-121.52146301,0.00012658,2]
[400381558,1767475832643,-1078.47853699,0.00012658,2]
[400381559,1767475832652,-599.0,0.00012658,2]
[400381560,1767475832662,-507.56198704,0.00012658,2]
[400381561,1767475832672,-12158.9884565,0.00012659,2]
[400381562,1767475832681,-999.0,0.00012806,2]
[400381563,1767475832691,-500.0,0.00012898,2]
[400381564,1767475832702,-500.0,0.00012898,2]
[400381565,1767475832714,-234.98559672,0.00012898,2]
[400381566,1767475832724,-270.27633419,0.00012898,2]
[400381567,1767475832735,-500.0,0.00012898,2]
[400381568,1767475832746,-500.0,0.00012898,2]
[400381569,1767475832755,-500.0,0.00012898,2]
[400381570,1767475832765,-500.0,0.00012898,2]
[400381571,1767475832775,-500.0,0.00012898,2]
[400381572,1767475832786,-500.0,0.00012898,2]
[400381573,1767475832796,-500.0,0.00012898,2]
[400381574,1767475832807,-500.0,0.00012898,2]
[400381575,1767475832817,-500.0,0.00012898,2]
[400381576,1767475832827,-500.0,0.00012898,2]
[400381577,1767475832837,-500.0,0.00012898,2]
[400381578,1767475832848,-500.0,0.00012898,2]
[400381579,1767475832858,-500.0,0.00012898,2]
[400381580,1767475832869,-500.0,0.00012898,2]
[400381581,1767475832879,-500.0,0.00012898,2]
[400381582,1767475832890,-500.0,0.00012898,2]
[400381583,1767475832913,-500.0,0.00012898,2]
[400381584,1767475832924,-224.872672,0.00012898,2]
[400381585,1767475832935,-500.0,0.00012898,2]
[400381586,1767475832946,-500.0,0.00012898,2]
[400381587,1767475832957,-500.0,0.00012898,2]
[400381588,1767475832967,-500.0,0.00012898,2]
[400381589,1767475832977,-500.0,0.00012898,2]
[400381590,1767475832988,-500.0,0.00012898,2]
[400381591,1767475832999,-50000.0,0.00012899,2]
[400381592,1767475833010,-151.0,0.00012902,2]
[400381593,1767475833022,-269.42496473,0.00012902,2]
[400381594,1767475833033,-300.0,0.00012911,2]
[400381595,1767475833044,-300.0,0.00012911,2]
[400381596,1767475833054,-300.0,0.00012911,2]
[400381597,1767475833065,-300.0,0.00012911,2]
[400381598,1767475833076,-300.0,0.00012911,2]
[400381599,1767475833086,-300.0,0.00012911,2]
[400381600,1767475833096,-300.0,0.00012911,2]
[400381601,1767475833107,-300.0,0.00012911,2]
[400381602,1767475833118,-300.0,0.00012911,2]
[400381603,1767475833128,-300.0,0.00012911,2]
[400381604,1767475833139,-300.0,0.00012911,2]
[400381605,1767475833149,-300.0,0.00012911,2]
[400381606,1767475833159,-300.0,0.00012911,2]
[400381607,1767475833170,-300.0,0.00012911,2]
[400381608,1767475833180,-300.0,0.00012911,2]
[400381609,1767475833190,-600.0,0.00013168,2]
[400381610,1767475833200,-500.0,0.00013273,2]
[400381611,1767475833210,-500.0,0.00013489,2]
[400381612,1767475833220,-500.0,0.00013489,2]
[400381613,1767475833231,-618.59666917,0.00013527,2]
[400381614,1767475833242,-500.0,0.00013626,2]
[400381615,1767475833257,-500.0,0.00013626,2]
[400381616,1767475833268,-500.0,0.00013698,2]
[400381617,1767475833278,-500.0,0.00013698,2]
[400381618,1767475833288,-1468.006915,0.00013699,2]
[400381619,1767475833298,-151.0,0.00013699,2]
[400381620,1767475833308,-151.0,0.00013699,2]
[400381621,1767475833318,-500.0,0.00013699,2]
[400381622,1767475833328,-2145.0,0.00013703,2]
[400381623,1767475833339,-500.0,0.00013763,2]
[400381624,1767475833349,-279.96642003,0.00013763,2]
[400381625,1767475833359,-1000.0,0.00013821,2]
[400381626,1767475833369,-196.186,0.00013877,2]
[400381627,1767475833380,-420.0,0.00013886,2]
[400381628,1767475833390,-250.0,0.000139,2]
[400381629,1767475833405,-401.25145523,0.000139,2]
[400381630,1767475833416,-1680.0,0.00013923,2]
[400381631,1767475833427,-283.34536394,0.00014147,2]
[400381632,1767475833437,-576.8467291,0.00014222,2]
[400381633,1767475833447,-12468.9750869,0.00014222,2]
[400381634,1767475833457,-1000.0,0.00014247,2]
[400381635,1767475833467,-1041.66666667,0.00014357,2]
[400381636,1767475833482,-363.69483018,0.00014368,2]
[400381637,1767475833493,-1774.49802251,0.00014378,2]
[400381638,1767475833504,-1573.0682303,0.00014403,2]
[400381639,1767475833514,-720.0,0.00014485,2]
[400381640,1767475833523,-598.92314471,0.00014658,2]
[400381641,1767475833534,-283.34536394,0.00014695,2]
[400381642,1767475833544,-600.0,0.00014728,2]
[400381643,1767475833554,-1500.0,0.00014795,2]
[400381644,1767475833564,-328.56978472,0.00014795,2]
[400381645,1767475833574,-517.44343873,0.00014795,2]
[400381646,1767475833584,-708.95917274,0.00014795,2]
[400381647,1767475833595,-545.2268579,0.00014795,2]
[400381648,1767475833605,-2180.90743161,0.00014795,2]
[400381649,1767475833616,-1312.96485976,0.00014795,2]
[400381650,1767475833627,-2833.00085425,0.00014795,2]
[400381651,1767475833637,-2067.70398117,0.00014795,2]
[400381652,1767475833647,-4907.04172113,0.00014795,2]
[400381653,1767475833657,-600.0,0.00014882,2]
[400381654,1767475833668,-168.0,0.00014956,2]
[400381655,1767475833679,-463.66741288,0.00015035,2]
[400381656,1767475833689,-500.0,0.00015068,2]
[400381657,1767475833700,-293.84384208,0.00015068,2]
[400381658,1767475833710,-587.0,0.00015234,2]
[400381659,1767475833720,-283.34536394,0.00015243,2]
[400381660,1767475833730,-2351.0,0.00015316,2]
[400381661,1767475833743,-2000.0,0.00015342,2]
[400381662,1767475833753,-168.0,0.00015647,2]
[400381663,1767475833763,-3398.99604503,0.00015678,2]
[400381664,1767475833774,-283.34536394,0.0001579,2]
[400381665,1767475833784,-576.8467291,0.00015837,2]
[400381666,1767475833795,-2500.0,0.0001589,2]
[400381667,1767475833805,-864.0,0.00015934,2]
[400381668,1767475833815,-100000.0,0.0001599,2]
[400381669,1767475833825,-500.0,0.00016,2]
[400381670,1767475833836,-10000.0,0.00016,2]
[400381671,1767475833846,-3000.0,0.00016,2]
[400381672,1767475833857,-151.0,0.00016,2]
[400381673,1767475833867,-3000.0,0.0001601,2]
[400381674,1767475833877,-3000.0,0.0001602,2]
[400381675,1767475833888,-3000.0,0.0001603,2]
[400381676,1767475833898,-3000.0,0.0001604,2]
[400381677,1767475833912,-3000.0,0.0001605,2]
[400381678,1767475833922,-2632.36671712,0.0001606,2]
[400381680,1767475838147,-500.0,0.00012897,2]
[400381681,1767475838157,-500.0,0.00012897,2]
[400381682,1767475838166,-500.0,0.00012897,2]
[400381683,1767475838175,-306.72602798,0.00012897,2]
[400381684,1767475838185,-596.60610422,0.00012897,2]
[400381685,1767475838195,-500.0,0.00012897,2]
[400381687,1767475838204,-184.47331872,0.00012897,2]
[400381689,1767475838214,-500.0,0.00012897,2]
[400381691,1767475838223,-500.0,0.00012897,2]
[400381693,1767475838233,-500.0,0.00012897,2]
[400381695,1767475838242,-537.39889619,0.00012897,2]
[400381697,1767475838252,-500.0,0.00012897,2]
[400381699,1767475838262,-500.0,0.00012897,2]
[400381700,1767475838272,-500.0,0.00012897,2]
[400381701,1767475838282,-308.8365997,0.00012897,2]
[400381702,1767475838292,-500.0,0.00012897,2]
[400381703,1767475838302,-500.0,0.00012897,2]
[400381704,1767475838312,-312.95305316,0.00012897,2]
[400381705,1767475838324,-47.09044684,0.00012897,2]
[400381706,1767475838335,-533.910982,0.00012897,2]
[400381707,1767475838345,-500.0,0.00012897,2]
[400381708,1767475838355,-500.0,0.00012897,2]
[400381709,1767475838364,-102.51496916,0.00012897,2]
[400381745,1767475840390,-397.48503084,0.00012897,2]
[400381747,1767475840400,-500.0,0.00012897,2]
[400381749,1767475840409,-299.079952,0.00013699,2]
[400381751,1767475840419,-151.0,0.00013699,2]